bitfinex-derivatives/quotes_BTCF0:USTF0_20251115
["timestamp","ask_amount","ask_price","bid_price","bid_amount"]
[1763238902868,0.04358,95723.0,95722.0,0.02820515]
[1763238903272,0.04358,95720.0,95719.0,0.07153515]
[1763238903464,0.04358,95720.0,95719.0,0.04333]
[1763238903664,0.04838187,95720.0,95719.0,0.04333]
[1763238903859,0.06285571,95720.0,95719.0,0.04333]
[1763238904173,0.06285571,95720.0,95719.0,0.0715199]
[1763238904564,0.06285571,95720.0,95719.0,0.0725199]
[1763238905175,0.06285571,95720.0,95719.0,0.04433]
[1763238907367,0.00480187,95720.0,95719.0,0.04433]
[1763238907868,0.00480168,95726.0,95725.0,0.04333]
[1763238909872,0.02605168,95726.0,95725.0,0.04333]
[1763238910371,0.02605168,95726.0,95725.0,0.0715096]
[1763238910666,0.00480168,95726.0,95725.0,0.0715096]
[1763238911260,0.00480168,95726.0,95725.0,0.04333]
[1763238911456,0.02605168,95726.0,95725.0,0.04333]
[1763238911661,0.00480168,95726.0,95725.0,0.04333]
[1763238916261,1.68e-06,95726.0,95725.0,0.04333]
[1763238917175,0.04373168,95726.0,95725.0,0.04333]
[1763238917375,0.04373168,95726.0,95725.0,0.08096312]
[1763238919276,0.04373168,95726.0,95725.0,0.04333]
[1763238920670,0.04373168,95726.0,95725.0,0.08092823]
[1763238921361,0.04373168,95726.0,95725.0,0.05036823]
[1763238921362,1.68e-06,95726.0,95725.0,0.05036823]
[1763238921675,1.68e-06,95726.0,95725.0,0.01277]
[1763238928182,1.68e-06,95726.0,95725.0,0.05036823]
[1763238929971,1.68e-06,95726.0,95725.0,0.01277]
[1763238931777,0.3608,95746.0,95745.0,0.04309]
[1763238932077,0.40427,95746.0,95745.0,0.04309]
[1763238933570,0.40527,95746.0,95745.0,0.04309]
[1763238933885,0.40627,95746.0,95745.0,0.04309]
[1763238936082,0.40627,95746.0,95742.0,0.0712828]
[1763238936083,0.04347,95743.0,95742.0,0.0712828]
[1763238936282,0.04347,95743.0,95742.0,0.04309]
[1763238937181,0.04447,95743.0,95742.0,0.04309]
[1763238937480,0.04547,95743.0,95742.0,0.04309]
[1763238938976,0.04547,95743.0,95742.0,0.0712828]
[1763238939182,0.04547,95743.0,95742.0,0.04309]
[1763238939378,0.04547,95743.0,95742.0,0.0712828]
[1763238941472,0.02036785,95743.0,95742.0,0.07127765]
[1763238941679,0.04239785,95743.0,95742.0,0.04309]
[1763238947984,0.04239785,95743.0,95736.0,0.05882705]
[1763238947985,0.04347,95737.0,95736.0,0.05882705]
[1763238948182,0.40427,95737.0,95736.0,0.05719665]
[1763238949084,0.40527,95737.0,95736.0,0.05719665]
[1763238960792,0.40527,95737.0,95736.0,0.00015665]
[1763238962091,0.40527,95737.0,95736.0,0.02327665]
[1763238962285,0.40527,95737.0,95736.0,0.05885665]
[1763238965790,0.40527,95737.0,95736.0,0.04617665]
[1763238965984,0.40527,95737.0,95736.0,0.00015665]
[1763238968582,0.44264054,95737.0,95736.0,0.00015665]
[1763238968982,0.40527,95737.0,95736.0,0.00015665]
[1763238971295,0.04313,95725.0,95724.0,0.07423718]
[1763238971690,0.04356635,95725.0,95724.0,0.04602]
[1763238972495,0.04356635,95725.0,95724.0,0.05988]
[1763238972698,0.04356635,95725.0,95724.0,0.08807801]
[1763238973400,0.04356635,95725.0,95724.0,0.05988]
[1763238984112,0.02186635,95725.0,95724.0,0.05988]
[1763238984808,0.04455635,95725.0,95724.0,0.05988]
[1763238987504,0.00043635,95725.0,95724.0,0.05988]
[1763238988505,0.02214635,95725.0,95724.0,0.05988]
[1763238989307,0.04545635,95725.0,95724.0,0.05988]
[1763238995410,0.04545635,95725.0,95724.0,0.0974704]
[1763238996410,0.02214635,95725.0,95724.0,0.05988]
[1763238996712,0.00043635,95725.0,95724.0,0.05988]
[1763239010521,0.04618635,95725.0,95724.0,0.05988]
[1763239011709,0.04618635,95725.0,95724.0,0.0975149]
[1763239012222,0.04618635,95725.0,95724.0,0.05988]
[1763239012523,0.04618635,95725.0,95724.0,0.0975149]
[1763239012918,0.04618635,95725.0,95724.0,0.05988]
[1763239014821,0.02287635,95725.0,95724.0,0.05988]
[1763239016022,0.04618635,95725.0,95724.0,0.05988]
[1763239021431,0.04618635,95725.0,95724.0,0.04602]
[1763239021725,0.04618635,95725.0,95724.0,0.0969749]
[1763239021933,0.04618635,95725.0,95724.0,0.05934]
[1763239022227,0.02480212,95725.0,95724.0,0.05934]
[1763239023928,0.02480212,95725.0,95724.0,0.09698344]
[1763239024126,0.02480212,95725.0,95724.0,0.05934]
[1763239027025,0.02480212,95725.0,95723.0,0.03764221]
[1763239027026,0.00744,95721.0,95720.0,0.09595024]
[1763239027227,0.00744,95719.0,95718.0,0.03469]
[1763239027428,0.00744,95719.0,95718.0,0.05616]
[1763239027625,0.0091863,95719.0,95718.0,0.05616]
[1763239029423,0.0091863,95719.0,95718.0,0.08437277]
[1763239031434,0.0091863,95719.0,95718.0,0.05616]
[1763239033330,0.0091863,95719.0,95715.0,0.02836942]
[1763239033536,0.00744,95716.0,95715.0,0.00015665]
[1763239033728,0.3608,95717.0,95709.0,0.02820116]
[1763239033937,0.3608,95717.0,95695.0,0.00470242]
[1763239033938,0.00744,95696.0,95695.0,0.00470242]
[1763239034231,0.38745442,95696.0,95695.0,0.04948242]
[1763239034437,0.38745442,95696.0,95695.0,0.06317242]
[1763239034735,0.38745442,95696.0,95695.0,0.00470242]
[1763239035233,0.38745442,95696.0,95678.0,0.03777682]
[1763239035234,0.38001442,95696.0,95681.0,0.02817977]
[1763239035437,0.3608,95687.0,95686.0,0.04504127]
[1763239035737,0.3608,95695.0,95694.0,0.04478]
[1763239035926,0.3258,95695.0,95694.0,0.04478]
[1763239036128,0.3258,95695.0,95690.0,0.01442267]
[1763239036129,0.00015675,95705.0,95704.0,0.04478]
[1763239036534,0.01762158,95705.0,95704.0,0.04478]
[1763239037636,0.01862158,95705.0,95704.0,0.04478]
[1763239038137,0.01962158,95705.0,95704.0,0.04478]
[1763239039441,0.40378,95725.0,95724.0,0.05828]
[1763239039737,0.3608,95725.0,95724.0,0.05828]
[1763239040630,0.3628,95725.0,95724.0,0.05828]
[1763239040830,0.002,95725.0,95724.0,0.05828]
[1763239041033,0.002,95725.0,95724.0,0.41908]
[1763239041234,0.00146268,95725.0,95724.0,0.41908]
[1763239042040,0.001,95725.0,95724.0,0.41908]
[1763239042339,0.002,95725.0,95724.0,0.41908]
[1763239042935,0.001,95725.0,95724.0,0.41908]
[1763239043835,0.04313675,95734.0,95733.0,0.04478]
[1763239048144,0.02157675,95734.0,95733.0,0.04478]
[1763239048344,0.00015675,95734.0,95733.0,0.04478]
[1763239052038,0.04588675,95734.0,95733.0,0.04478]
[1763239053048,0.00015675,95734.0,95733.0,0.04478]
[1763239053346,0.3608,95742.0,95741.0,0.04418]
[1763239053547,0.40653,95758.0,95757.0,0.04418]
[1763239054749,0.41881605,95758.0,95757.0,0.04418]
[1763239055947,0.05801605,95758.0,95757.0,0.04418]
[1763239056648,0.03509605,95758.0,95757.0,0.04418]
[1763239058253,0.02500803,95760.0,95759.0,0.04418]
[1763239058750,0.04792803,95760.0,95759.0,0.04418]
[1763239061549,0.04792803,95760.0,95759.0,0.40498]
[1763239063443,0.00219803,95760.0,95759.0,0.40498]
[1763239064044,0.00899803,95760.0,95748.0,0.00015666]
[1763239064244,0.00899803,95760.0,95730.0,0.05092221]
[1763239064245,0.04573,95733.0,95732.0,0.40498]
[1763239064454,0.00899803,95730.0,95724.0,0.04418]
[1763239064758,0.04573,95725.0,95724.0,0.04418]
[1763239067154,0.04573,95725.0,95724.0,0.05746]
[1763239069458,0.40653,95725.0,95724.0,0.04418]
[1763239069961,0.04573,95716.0,95715.0,0.00015666]
[1763239070256,0.40653,95716.0,95715.0,0.00015666]
[1763239070465,0.40653,95716.0,95715.0,0.04433666]
[1763239073455,0.38361,95716.0,95715.0,0.04433666]
[1763239074153,0.3608,95716.0,95715.0,0.04433666]
[1763239074357,0.04792803,95720.0,95719.0,0.04418]
[1763239075049,0.04573,95716.0,95715.0,0.02156666]
[1763239075258,0.04573,95716.0,95715.0,0.00015666]
[1763239075460,0.02062295,95716.0,95715.0,0.00015666]
[1763239075663,0.04343295,95716.0,95715.0,0.00015666]
[1763239077065,0.3608,95717.0,95703.0,0.3608]
[1763239077359,0.04573,95701.0,95700.0,0.04491267]
[1763239077568,0.04573,95687.0,95679.0,0.39844221]
[1763239077751,0.04573,95687.0,95686.0,0.04444127]
[1763239078056,0.05359304,95687.0,95686.0,0.00026127]
[1763239078855,0.06595642,95687.0,95686.0,0.04402127]
[1763239079250,0.06595642,95687.0,95686.0,0.02240127]
[1763239079450,0.06595642,95687.0,95686.0,0.04475127]
[1763239080566,0.05359304,95687.0,95686.0,0.04475127]
[1763239081472,0.05359304,95687.0,95686.0,0.02240127]
[1763239081762,0.05359304,95687.0,95686.0,0.04475127]
[1763239089072,0.03067304,95687.0,95686.0,0.04475127]
[1763239089274,0.05250304,95687.0,95686.0,0.04475127]
[1763239091271,0.05250304,95687.0,95686.0,0.02240127]
[1763239091576,0.05250304,95687.0,95686.0,0.04475127]
[1763239093282,0.05250304,95687.0,95686.0,0.00026127]
[1763239095976,0.05250304,95687.0,95686.0,0.02218127]
[1763239096471,0.05250304,95687.0,95686.0,0.00026127]
[1763239096673,0.05250304,95687.0,95662.0,0.01328]
[1763239096674,0.0068,95669.0,95664.0,0.0281094]
[1763239096865,0.04385,95656.0,95655.0,0.06168438]
[1763239097071,0.02338803,95660.0,95659.0,0.04431]
[1763239097273,0.04385,95668.0,95667.0,0.04431]
[1763239097674,0.04396814,95668.0,95667.0,0.04431]
[1763239097981,0.07455409,95668.0,95667.0,0.04431]
[1763239098374,0.07455409,95668.0,95662.0,0.04431]
[1763239098375,0.04385,95663.0,95662.0,0.04431]
[1763239098569,0.40465,95663.0,95662.0,0.04431]
[1763239098775,0.00611398,95663.0,95662.0,0.04431]
[1763239099171,0.00611398,95663.0,95657.0,0.3608]
[1763239099172,0.07443595,95667.0,95666.0,0.04431]
[1763239100678,0.07543595,95667.0,95666.0,0.04431]
[1763239103484,0.07443595,95667.0,95666.0,0.04431]
[1763239103685,0.07543595,95667.0,95666.0,0.04431]
[1763239104378,0.05277595,95667.0,95666.0,0.04431]
[1763239104776,0.03158595,95667.0,95666.0,0.04431]
[1763239106076,0.03058595,95667.0,95666.0,0.04431]
[1763239106277,0.03158595,95667.0,95666.0,0.04431]
[1763239106683,0.03058595,95667.0,95666.0,0.04431]
[1763239106883,0.05277595,95667.0,95666.0,0.04431]
[1763239107383,0.07443595,95667.0,95666.0,0.04431]
[1763239107581,0.07543595,95667.0,95666.0,0.04431]
[1763239110689,0.03158595,95667.0,95666.0,0.04431]
[1763239110884,0.00011814,95668.0,95666.0,0.04431]
[1763239110885,4.09e-06,95668.0,95666.0,0.04431]
[1763239111188,4.09e-06,95668.0,95667.0,0.04326]
[1763239111587,0.00015674,95676.0,95675.0,0.04326]
[1763239111786,0.00015674,95676.0,95675.0,0.40406]
[1763239113490,0.00115674,95676.0,95675.0,0.40406]
[1763239116391,0.00115674,95676.0,95675.0,0.43222952]
[1763239118486,0.00115674,95676.0,95675.0,0.40406]
[1763239120295,0.00115674,95676.0,95675.0,0.44170221]
[1763239121793,0.00115674,95676.0,95675.0,0.40406]
[1763239124087,0.40609,95694.0,95693.0,0.04326]
[1763239124489,0.04529,95694.0,95693.0,0.04326]
[1763239125581,0.04529,95694.0,95693.0,0.04826]
[1763239125986,0.04529,95694.0,95693.0,0.05226]
[1763239126182,0.40609,95694.0,95693.0,0.05226]
[1763239130897,0.41951,95694.0,95693.0,0.009]
[1763239132202,0.41951,95694.0,95693.0,0.03072]
[1763239132796,0.41951,95694.0,95693.0,0.05226]
[1763239133596,0.41951,95694.0,95693.0,0.009]
[1763239140697,0.40609,95694.0,95693.0,0.05334]
[1763239146913,0.04529,95694.0,95693.0,0.05334]
[1763239147110,0.04213683,95694.0,95693.0,0.05334]
[1763239148213,0.40293683,95694.0,95693.0,0.009]
[1763239150117,0.40293683,95694.0,95693.0,0.03039]
[1763239150314,0.44027041,95694.0,95693.0,0.03039]
[1763239150808,0.44027094,95694.0,95693.0,0.03039]
[1763239151116,0.44027084,95694.0,95693.0,0.03039]
[1763239151906,0.40293683,95694.0,95693.0,0.03039]
[1763239152610,0.40293683,95694.0,95693.0,0.009]
[1763239152813,0.05003,95685.0,95675.0,0.38897731]
[1763239153010,0.41083,95685.0,95675.0,0.38897731]
[1763239153211,0.41083,95685.0,95675.0,0.3608]
[1763239154014,0.41083,95685.0,95684.0,0.00515674]
[1763239154218,0.41083,95685.0,95684.0,0.01015674]
[1763239156318,0.44813883,95685.0,95684.0,0.01015674]
[1763239156813,0.44069883,95685.0,95684.0,0.05470674]
[1763239157020,0.40339,95685.0,95684.0,0.05470674]
[1763239158018,0.3608,95685.0,95684.0,0.05470674]
[1763239158209,0.03730883,95692.0,95684.0,0.05470674]
[1763239158210,0.04259,95692.0,95691.0,0.04455]
[1763239158613,0.3608,95694.0,95691.0,0.04455]
[1763239158614,0.39810883,95694.0,95691.0,0.04455]
[1763239158820,0.38231,95694.0,95693.0,0.04455]
[1763239159318,0.41961883,95694.0,95693.0,0.04455]
[1763239159519,0.39810883,95694.0,95693.0,0.04455]
[1763239159728,0.05881883,95697.0,95696.0,0.04455]
[1763239160111,0.00219803,95700.0,95696.0,0.04455]
[1763239160112,0.03730883,95699.0,95696.0,0.04455]
[1763239160315,0.02151,95699.0,95698.0,0.04455]
[1763239160517,0.04259,95699.0,95698.0,0.04455]
[1763239160717,0.00219803,95700.0,95699.0,0.04455]
[1763239161213,0.02370803,95700.0,95699.0,0.04455]
[1763239161608,0.03557443,95700.0,95699.0,0.04455]
[1763239162121,0.01406443,95700.0,95699.0,0.04455]
[1763239162316,0.01406443,95700.0,95699.0,0.04955]
[1763239162519,0.00219803,95700.0,95699.0,0.04955]
[1763239162914,0.00219803,95700.0,95699.0,0.05355]
[1763239163823,0.00015674,95703.0,95702.0,0.04455]
[1763239164413,0.02166674,95703.0,95702.0,0.04455]
[1763239164618,0.04274674,95703.0,95702.0,0.04455]
[1763239165020,0.04274674,95703.0,95702.0,0.04955]
[1763239165825,0.04274674,95703.0,95702.0,0.05355]
[1763239181343,0.00015674,95703.0,95702.0,0.05355]
[1763239184929,0.02190674,95703.0,95702.0,0.05355]
[1763239185134,0.04454674,95703.0,95702.0,0.05355]
[1763239185930,0.00015674,95703.0,95702.0,0.05355]
[1763239187033,0.00015674,95703.0,95702.0,0.08172731]
[1763239187234,0.00015674,95703.0,95702.0,0.05355]
[1763239189038,0.40519,95717.0,95716.0,0.04641]
[1763239190044,0.40519,95717.0,95716.0,0.05041]
[1763239190348,0.41718432,95717.0,95716.0,0.05341]
[1763239190540,0.05638432,95717.0,95716.0,0.05341]
[1763239201153,0.05638432,95717.0,95716.0,0.007]
[1763239203745,0.05638432,95717.0,95707.0,0.00015674]
[1763239203947,0.0431,95697.0,95696.0,0.02237]
[1763239204152,0.00797,95705.0,95691.0,0.04497]
[1763239204153,0.0431,95692.0,95691.0,0.04497]
[1763239205959,0.0431,95692.0,95691.0,0.05397]
[1763239221575,0.0431,95692.0,95691.0,0.05407]
[1763239230277,0.0431,95692.0,95691.0,0.08225923]
[1763239231375,0.0431,95692.0,95691.0,0.05407]
[1763239234675,0.40628,95700.0,95699.0,0.04477]
[1763239234878,0.40701267,95700.0,95699.0,0.04477]
[1763239235883,0.40701267,95700.0,95699.0,0.04877]
[1763239236866,0.40701267,95700.0,95699.0,0.05277]
[1763239238270,0.4442876,95700.0,95699.0,0.05277]
[1763239240583,0.4442876,95700.0,95699.0,0.03125]
[1763239240978,0.40701267,95700.0,95699.0,0.03125]
[1763239242384,0.40701267,95700.0,95699.0,0.008]
[1763239242582,0.41603267,95700.0,95699.0,0.008]
[1763239246280,0.45334636,95700.0,95699.0,0.008]
[1763239250288,0.41603267,95700.0,95699.0,0.008]
[1763239255386,0.47194616,95700.0,95699.0,0.008]
[1763239255785,0.04548,95684.0,95683.0,0.07300903]
[1763239256086,0.04548,95684.0,95683.0,0.02325]
[1763239256478,0.04548,95684.0,95683.0,0.04477]
[1763239257482,0.04548,95684.0,95683.0,0.04877]
[1763239260787,0.05398,95684.0,95683.0,0.004]
[1763239261280,0.09128734,95684.0,95683.0,0.004]
[1763239261489,0.05398,95684.0,95683.0,0.001802]
[1763239261688,0.04384,95662.0,95661.0,0.04521]
[1763239262189,0.05082818,95662.0,95661.0,0.04521]
[1763239263294,0.04384,95661.0,95660.0,0.08912563]
[1763239263484,0.01853789,95662.0,95660.0,0.06092803]
[1763239263684,0.01154971,95662.0,95661.0,0.04521]
[1763239263881,0.04457267,95670.0,95669.0,0.04521]
[1763239264093,0.05594871,95670.0,95669.0,0.04521]
[1763239265089,0.05794871,95670.0,95669.0,0.04521]
[1763239266394,0.05994871,95670.0,95669.0,0.04521]
[1763239268389,0.02460871,95670.0,95664.0,0.02819613]
[1763239268585,0.40464,95665.0,95664.0,0.04521]
[1763239268895,0.40726238,95665.0,95664.0,0.04521]
[1763239269498,0.38726238,95665.0,95664.0,0.04521]
[1763239270100,0.38726238,95665.0,95664.0,0.02271]
[1763239270283,0.38726238,95665.0,95660.0,0.01571803]
[1763239270284,0.04384,95661.0,95660.0,0.04740803]
[1763239270693,0.04908002,95661.0,95660.0,0.04740803]
[1763239271297,0.00524002,95661.0,95660.0,0.06092803]
[1763239271600,0.02369,95661.0,95660.0,0.06092803]
[1763239271991,0.02893002,95661.0,95660.0,0.06092803]
[1763239272294,0.05108002,95661.0,95660.0,0.06092803]
[1763239272498,0.05308002,95661.0,95660.0,0.06092803]
[1763239275690,0.0444,95656.0,95655.0,0.00470438]
[1763239275889,0.0444,95656.0,95655.0,0.06097438]
[1763239276096,0.04513267,95660.0,95659.0,0.04265]
[1763239276503,0.05386931,95660.0,95659.0,0.04265]
[1763239277089,0.03063931,95660.0,95659.0,0.04265]
[1763239277694,0.03263931,95660.0,95659.0,0.04265]
[1763239278296,0.01146931,95660.0,95659.0,0.04265]
[1763239278910,0.05786931,95660.0,95659.0,0.04265]
[1763239279198,0.01346931,95660.0,95659.0,0.04265]
[1763239279399,0.03463931,95660.0,95659.0,0.04265]
[1763239279601,0.01346931,95660.0,95659.0,0.04265]
[1763239284704,0.01273664,95660.0,95659.0,0.04265]
[1763239285803,0.05577604,95670.0,95669.0,0.04265]
[1763239285997,0.01210871,95670.0,95669.0,0.04265]
[1763239286793,0.00073267,95670.0,95669.0,0.04265]
[1763239287303,0.00373267,95670.0,95669.0,0.04265]
[1763239287906,0.00573267,95670.0,95669.0,0.04265]
[1763239288603,0.00573267,95670.0,95669.0,0.07084613]
[1763239288604,0.00373267,95670.0,95669.0,0.07084613]
[1763239288809,0.002,95670.0,95669.0,0.07084613]
[1763239289002,0.004,95670.0,95669.0,0.04265]
[1763239290206,0.3608,95680.0,95679.0,0.0459]
[1763239290405,0.36153267,95680.0,95679.0,0.0459]
[1763239290811,0.00073267,95680.0,95679.0,0.0459]
[1763239291508,0.00373267,95680.0,95679.0,0.0459]
[1763239291909,0.00673267,95680.0,95679.0,0.0459]
[1763239294305,0.006,95680.0,95679.0,0.0459]
[1763239294509,0.02118674,95689.0,95688.0,0.0459]
[1763239294706,0.00015674,95689.0,95688.0,0.0459]
[1763239295619,0.04270674,95689.0,95688.0,0.0459]
[1763239295805,0.04270674,95689.0,95688.0,0.0499]
[1763239296006,0.02118674,95689.0,95688.0,0.0539]
[1763239297218,0.05427678,95689.0,95688.0,0.0539]
[1763239301016,0.05427678,95689.0,95688.0,0.03075]
[1763239301816,0.05427678,95689.0,95688.0,0.02675]
[1763239302013,0.05427678,95689.0,95688.0,0.03175]
[1763239302511,0.05427678,95689.0,95688.0,0.02675]
[1763239302711,0.05427678,95689.0,95688.0,0.03175]
[1763239303518,0.05427678,95689.0,95688.0,0.0549]
[1763239304020,0.05427678,95689.0,95688.0,0.0499]
[1763239304210,0.05427678,95689.0,95688.0,0.0549]
[1763239304612,0.05427678,95689.0,95688.0,0.0499]
[1763239304921,0.05427678,95689.0,95688.0,0.0549]
[1763239307007,0.05427678,95689.0,95688.0,0.0509]
[1763239307412,0.05427678,95689.0,95688.0,0.0549]
[1763239309526,0.04255,95676.0,95670.0,0.09607604]
[1763239309825,0.04255,95676.0,95675.0,0.0459]
[1763239310720,0.02303,95676.0,95675.0,0.0459]
[1763239310916,0.02503,95676.0,95675.0,0.0459]
[1763239311513,0.004,95676.0,95675.0,0.05434]
[1763239311919,0.002,95676.0,95675.0,0.05434]
[1763239312115,0.004,95676.0,95675.0,0.08254253]
[1763239313215,0.005,95676.0,95675.0,0.08254253]
[1763239313412,0.04755,95676.0,95675.0,0.0459]
[1763239313824,0.005,95676.0,95675.0,0.0459]
[1763239315321,0.04755,95676.0,95675.0,0.0459]
[1763239320031,0.005,95676.0,95675.0,0.0459]
[1763239320219,0.005,95676.0,95675.0,0.08354221]
[1763239320523,0.005,95676.0,95675.0,0.0459]
[1763239320728,0.005,95676.0,95675.0,0.08355394]
[1763239321724,0.005,95676.0,95675.0,0.0459]
[1763239323118,0.005,95676.0,95675.0,0.08355498]
[1763239325630,0.04915,95676.0,95675.0,0.08355498]
[1763239325831,0.04915,95676.0,95675.0,0.0459]
[1763239328429,0.02718,95676.0,95675.0,0.0459]
[1763239328737,0.005,95676.0,95675.0,0.05247]
[1763239329142,0.02718,95676.0,95675.0,0.05247]
[1763239329336,0.02718,95676.0,95675.0,0.09012498]
[1763239329522,0.02718,95676.0,95675.0,0.05247]
[1763239329934,0.04915,95676.0,95675.0,0.05247]
[1763239330327,0.04915,95676.0,95675.0,0.0459]
[1763239331933,0.04915,95676.0,95675.0,0.08355498]
[1763239336539,0.06295,95676.0,95675.0,0.06040498]
[1763239336739,0.06295,95676.0,95675.0,0.02275]
[1763239336937,0.04328,95673.0,95672.0,0.04346]
[1763239337238,0.04328,95671.0,95670.0,0.03059526]
[1763239337636,0.04328,95671.0,95670.0,0.05227526]
[1763239338140,0.04328,95671.0,95670.0,0.02403477]
[1763239338336,0.04328,95671.0,95670.0,0.05226954]
[1763239338541,0.04328,95671.0,95670.0,0.02403477]
[1763239339341,0.04728,95671.0,95670.0,0.02403477]
[1763239339541,0.04728,95671.0,95670.0,0.00015674]
[1763239345947,0.04728,95671.0,95670.0,0.02183674]
[1763239346149,0.04728,95671.0,95670.0,0.04361674]
[1763239349550,0.40808,95671.0,95670.0,0.04361674]
[1763239350757,0.40808,95671.0,95670.0,0.04581477]
[1763239351854,0.40808,95671.0,95670.0,0.00015674]
[1763239362668,0.40808,95671.0,95655.0,0.00470438]
[1763239362669,0.04436,95658.0,95657.0,0.02242]
[1763239362971,0.40690853,95658.0,95657.0,0.02242]
[1763239363470,0.40690853,95658.0,95657.0,0.04445]
[1763239363859,0.40890853,95658.0,95657.0,0.04445]
[1763239364474,0.40890853,95658.0,95657.0,0.07263795]
[1763239364675,0.40890853,95658.0,95657.0,0.04445]
[1763239364875,0.41090853,95658.0,95657.0,0.04445]
[1763239365575,0.05010853,95658.0,95657.0,0.04445]
[1763239365874,0.05701,95656.0,95653.0,0.03680936]
[1763239366060,0.05701,95656.0,95655.0,0.00074]
[1763239366462,0.06050713,95656.0,95655.0,0.00074]
[1763239367065,0.06250713,95656.0,95655.0,0.00074]
[1763239367876,0.06350713,95656.0,95655.0,0.00074]
[1763239368473,0.06250713,95656.0,95655.0,0.00074]
[1763239368670,0.06450713,95656.0,95655.0,0.00074]
[1763239372775,0.04436,95651.0,95650.0,0.00932363]
[1763239373175,0.04873182,95651.0,95650.0,0.00932363]
[1763239373879,0.04973182,95651.0,95650.0,0.00932363]
[1763239375080,0.05073182,95651.0,95650.0,0.00932363]
[1763239375683,0.05701,95649.0,95648.0,0.3608]
[1763239376083,0.06225599,95649.0,95648.0,0.3608]
[1763239376781,0.06325599,95649.0,95648.0,0.3608]
[1763239377985,0.06425599,95649.0,95648.0,0.3608]
[1763239378384,0.00074,95647.0,95646.0,1.38e-06]
[1763239378582,0.36154,95647.0,95646.0,1.38e-06]
[1763239378884,0.78439342,95647.0,95646.0,1.38e-06]
[1763239379276,0.72846075,95647.0,95646.0,1.38e-06]
[1763239379678,0.73046075,95647.0,95646.0,1.38e-06]
[1763239380288,0.00022,95627.0,95626.0,0.04477]
[1763239380787,0.02295933,95627.0,95626.0,0.04477]
[1763239381179,0.02295933,95627.0,95626.0,0.07302608]
[1763239381378,0.02395933,95627.0,95626.0,0.04477]
[1763239381588,0.02495933,95627.0,95626.0,0.04477]
[1763239384782,0.02484933,95627.0,95626.0,0.04477]
[1763239385393,0.02495933,95627.0,95626.0,0.04477]
[1763239386690,0.02484933,95627.0,95626.0,0.04477]
[1763239388092,0.02495933,95627.0,95626.0,0.04477]
[1763239389388,0.02495933,95627.0,95626.0,0.07302608]
[1763239389595,0.02473933,95627.0,95626.0,0.04477]
[1763239389894,0.02473933,95627.0,95626.0,0.07302608]
[1763239390594,0.02473933,95627.0,95626.0,0.04477]
[1763239392288,0.02495933,95627.0,95626.0,0.04477]
[1763239392997,0.02484933,95627.0,95626.0,0.04477]
[1763239393798,0.02473933,95627.0,95626.0,0.04477]
[1763239394197,0.00022,95621.0,95620.0,0.05957]
[1763239394495,0.00222,95627.0,95626.0,0.04621]
[1763239395090,0.03108008,95627.0,95626.0,0.04621]
[1763239395891,0.03008008,95627.0,95626.0,0.04621]
[1763239396899,0.03108008,95627.0,95626.0,0.04621]
[1763239397994,0.39188008,95627.0,95626.0,0.04621]
[1763239398194,0.00022,95621.0,95620.0,0.05957]
[1763239398503,0.00546943,95621.0,95620.0,0.05957]
[1763239399497,0.00646943,95621.0,95620.0,0.05957]
[1763239399703,0.00746943,95621.0,95620.0,0.05957]
[1763239400495,0.01845881,95621.0,95620.0,0.05957]
[1763239401599,0.01845881,95621.0,95610.0,0.10043578]
[1763239401600,0.00022,95618.0,95617.0,0.02812851]
[1763239401800,0.00022,95618.0,95615.0,0.01862635]
[1763239401801,0.00022,95616.0,95615.0,0.06483635]
[1763239402106,0.00197006,95616.0,95615.0,0.06483635]
[1763239403192,0.00186006,95616.0,95615.0,0.06483635]
[1763239403399,0.00175006,95616.0,95615.0,0.06483635]
[1763239403706,0.03673447,95617.0,95615.0,0.01862635]
[1763239403896,0.03673447,95617.0,95616.0,0.04621]
[1763239404899,0.03773447,95617.0,95616.0,0.04621]
[1763239405404,0.03873447,95617.0,95616.0,0.04621]
[1763239405607,0.00373447,95617.0,95616.0,0.03977905]
[1763239407899,0.00373447,95617.0,95616.0,0.07728447]
[1763239408300,0.00373447,95617.0,95616.0,0.03977905]
[1763239408800,0.3608,95627.0,95616.0,0.03977905]
[1763239409005,0.3608,95627.0,95626.0,0.04497]
[1763239409609,0.3828,95627.0,95626.0,0.04497]
[1763239410602,0.4051,95627.0,95626.0,0.04497]
[1763239410907,0.4071,95627.0,95626.0,0.04497]
[1763239418111,0.4071,95627.0,95626.0,0.07322132]
[1763239418313,0.4071,95627.0,95626.0,0.04497]
[1763239419009,0.00582,95612.0,95595.0,0.07524081]
[1763239419311,0.24621324,95605.0,95575.0,0.00470832]
[1763239419499,0.7216,95576.0,95575.0,0.00470832]
[1763239419908,0.73429693,95576.0,95575.0,0.00470832]
[1763239420214,0.77146547,95576.0,95575.0,0.00470832]
[1763239420506,0.83429693,95576.0,95575.0,0.00470832]
[1763239420709,0.73429693,95576.0,95552.0,0.0139]
[1763239420912,0.3608,95567.0,95552.0,0.0139]
[1763239421208,0.3608,95567.0,95520.0,0.0139]
[1763239421209,0.39284709,95567.0,95520.0,0.0139]
[1763239421411,0.39284709,95567.0,95528.0,0.05887]
[1763239421412,0.3608,95529.0,95528.0,0.05887]
[1763239421811,0.3608,95544.0,95543.0,0.04497]
[1763239422005,0.3608,95544.0,95543.0,0.02184]
[1763239422203,0.3608,95554.0,95553.0,0.04497]
[1763239422401,0.3608,95562.0,95561.0,0.04497]
[1763239422708,0.05603843,95554.0,95553.0,0.04497]
[1763239423102,0.36089447,95554.0,95553.0,0.04497]
[1763239423315,0.36089447,95554.0,95550.0,0.0139]
[1763239423510,0.4164948,95554.0,95550.0,0.0139]
[1763239423715,0.41640033,95554.0,95520.0,0.09597108]
[1763239424014,0.3608,95537.0,95536.0,0.05887]
[1763239424207,0.36088848,95537.0,95536.0,0.05887]
[1763239424404,0.38695537,95537.0,95530.0,0.0139]
[1763239425208,0.38795537,95537.0,95530.0,0.0139]
[1763239426017,0.38895537,95537.0,95530.0,0.0139]
[1763239426609,0.38995537,95537.0,95530.0,0.0139]
[1763239427014,0.38995537,95537.0,95536.0,0.04497]
[1763239427413,0.37922441,95537.0,95536.0,0.04497]